bitfinex-derivatives/quotes_BTCF0:USTF0_20250506
["timestamp","ask_amount","ask_price","bid_price","bid_amount"]
[1746573915172,0.1035,96800.0,96795.0,0.0516581]
[1746573915368,0.1035,96800.0,96799.0,0.206624]
[1746573915669,0.3608,96806.0,96799.0,2.36347172]
[1746573915870,0.3608,96806.0,96805.0,0.2066112]
[1746573916074,0.3608,96806.0,96805.0,0.55]
[1746573916274,0.567409,96806.0,96805.0,0.45068]
[1746573916572,0.3608,96806.0,96805.0,2.26059119]
[1746573916773,0.567409,96806.0,96805.0,2.26059119]
[1746573916970,0.2152,96822.0,96805.0,2.26059119]
[1746573916971,0.3608,96831.0,96805.0,2.05397999]
[1746573917172,0.2065877,96816.0,96815.0,0.3608]
[1746573917382,0.0516453,96819.0,96815.0,1.218429]
[1746573917574,0.2065877,96816.0,96815.0,1.218429]
[1746573917776,0.3154852,96818.0,96815.0,1.01184]
[1746573917977,0.2065877,96816.0,96815.0,1.2184294]
[1746573918180,0.2065877,96816.0,96815.0,1.1406774]
[1746573918484,0.51686169,96816.0,96815.0,0.77212]
[1746573919283,0.62576169,96816.0,96815.0,0.77212]
[1746573919485,0.60576169,96816.0,96815.0,0.77212]
[1746573919781,0.60576169,96816.0,96815.0,0.28132]
[1746573919982,0.81274169,96816.0,96815.0,0.6]
[1746573920174,0.81274169,96816.0,96815.0,0.3329]
[1746573920378,0.81274169,96816.0,96815.0,0.4239]
[1746573921168,0.81274169,96816.0,96815.0,0.42382]
[1746573921975,0.81274169,96816.0,96815.0,0.1658]
[1746573922181,1.17354169,96816.0,96815.0,0.1658]
[1746573923987,0.81274169,96816.0,96815.0,0.1658]
[1746573924373,0.81274169,96816.0,96815.0,0.1806703]
[1746573925089,0.81274169,96816.0,96815.0,0.2106703]
[1746573925586,0.92184169,96816.0,96815.0,0.2106703]
[1746573926286,0.92184169,96816.0,96815.0,0.1806703]
[1746573926786,0.92184169,96816.0,96815.0,0.18097481]
[1746573928191,0.92184169,96816.0,96815.0,0.18090736]
[1746573929174,0.92184169,96816.0,96815.0,0.18091727]
[1746573929683,0.92184169,96816.0,96785.0,0.00103321]
[1746573929684,0.2066517,96786.0,96785.0,0.00103321]
[1746573929880,0.2066517,96786.0,96785.0,0.10153227]
[1746573930183,0.2066816,96772.0,96771.0,0.11958826]
[1746573930389,0.2066902,96768.0,96751.0,0.3608]
[1746573930581,0.2067051,96761.0,96752.0,1.5]
[1746573930782,0.2067115,96758.0,96757.0,0.25786948]
[1746573930977,0.2067115,96758.0,96757.0,0.75786948]
[1746573931181,0.2067115,96758.0,96757.0,0.45786948]
[1746573931377,0.2067115,96758.0,96757.0,0.54842948]
[1746573931778,0.2067115,96758.0,96757.0,1.04842948]
[1746573931987,0.1096,96760.0,96759.0,0.2067094]
[1746573932288,0.1096,96760.0,96759.0,1.1381094]
[1746573932596,0.1096,96760.0,96759.0,1.2414574]
[1746573932781,0.11945,96778.0,96768.0,0.0516722]
[1746573933098,0.2066752,96775.0,96774.0,0.2066765]
[1746573933279,0.2066718,96777.0,96776.0,0.2066696]
[1746573933485,0.1616668,96779.0,96774.0,0.2972358]
[1746573933486,0.2066752,96775.0,96774.0,0.2972358]
[1746573933680,0.2066752,96775.0,96774.0,0.9075558]
[1746573933886,0.6206252,96775.0,96774.0,0.09052]
[1746573934482,0.6206252,96775.0,96774.0,1.59052]
[1746573935490,0.6206252,96775.0,96774.0,2.09052]
[1746573935989,0.7582252,96775.0,96774.0,2.09052]
[1746573937492,0.7582252,96775.0,96774.0,2.0]
[1746573937695,0.7582252,96775.0,96774.0,0.5]
[1746573938689,0.86155721,96775.0,96774.0,0.5]
[1746573940194,0.7582252,96775.0,96774.0,0.5]
[1746573940794,0.0708662,96776.0,96774.0,0.98012]
[1746573940999,0.0015,96795.0,96775.0,0.103332]
[1746573941293,0.20149387,96781.0,96780.0,0.3608]
[1746573941495,0.40847387,96781.0,96780.0,0.6308]
[1746573941793,0.61544387,96781.0,96780.0,0.16]
[1746573941992,0.2066688,96778.0,96777.0,0.09012]
[1746573942194,0.6206188,96778.0,96777.0,0.09012]
[1746573942391,0.6206188,96778.0,96777.0,1.59012]
[1746573942797,0.6206188,96778.0,96777.0,0.09012]
[1746573942990,0.206688,96769.0,96768.0,0.3608]
[1746573943190,0.620638,96769.0,96768.0,0.4008]
[1746573943596,0.620638,96769.0,96768.0,0.9008]
[1746573943797,0.620638,96769.0,96768.0,0.91649192]
[1746573943992,0.620638,96769.0,96768.0,0.51569192]
[1746573944720,0.620638,96769.0,96768.0,0.56569192]
[1746573944921,0.620638,96769.0,96768.0,2.06555296]
[1746573945996,0.763138,96769.0,96768.0,2.06555296]
[1746573946198,0.763138,96769.0,96768.0,2.01555296]
[1746573946498,0.763138,96769.0,96768.0,0.51555296]
[1746573946696,0.763138,96769.0,96755.0,0.00627353]
[1746573946697,0.2067158,96756.0,96755.0,0.00627353]
[1746573946890,0.9814658,96756.0,96755.0,0.00103353]
[1746573947492,1.2630658,96756.0,96755.0,0.00103353]
[1746573947692,0.9022658,96756.0,96755.0,0.00103353]
[1746573948801,0.9022658,96756.0,96755.0,0.50103353]
[1746573952103,1.0056178,96756.0,96755.0,0.50103353]
[1746573953104,1.0056178,96756.0,96744.0,0.01002853]
[1746573953105,0.4656316,96751.0,96744.0,0.01002853]
[1746573953309,0.2067436,96743.0,96742.0,0.00155051]
[1746573953508,0.6206936,96743.0,96742.0,0.00155051]
[1746573953707,0.2067671,96732.0,96714.0,0.3608]
[1746573954003,0.9815171,96732.0,96719.0,0.0052]
[1746573954512,0.6207171,96732.0,96726.0,0.1325]
[1746573954703,0.6207171,96732.0,96731.0,0.50155034]
[1746573954906,0.6207171,96732.0,96731.0,2.0091596]
[1746573955299,0.4137371,96732.0,96731.0,2.0091596]
[1746573955511,0.2067671,96732.0,96731.0,2.0091596]
[1746573956011,0.0516866,96742.0,96731.0,2.1491596]
[1746573956314,0.20698,96740.0,96732.0,0.1325]
[1746573956609,0.20698,96740.0,96739.0,0.2067521]
[1746573956801,0.2762,96744.0,96739.0,0.2067521]
[1746573956802,0.0516789,96757.0,96739.0,0.61337199]
[1746573956998,0.2067372,96746.0,96745.0,0.3608]
[1746573957203,0.2067479,96741.0,96740.0,0.2655]
[1746573957409,0.2067479,96741.0,96740.0,0.60738]
[1746573957609,0.2067479,96741.0,96740.0,0.96074799]
[1746573957795,0.2067479,96741.0,96740.0,0.71074799]
[1746573958001,0.4124722,96769.0,96740.0,1.22074799]
[1746573958301,0.206688,96769.0,96768.0,0.3608]
[1746573958503,0.2066902,96768.0,96767.0,0.09192]
[1746573958805,0.3402902,96768.0,96767.0,0.16192]
[1746573959004,0.3402902,96768.0,96767.0,0.07]
[1746573959195,0.2066902,96768.0,96767.0,0.07]
[1746573959600,0.2066902,96768.0,96767.0,0.57]
[1746573959797,0.2066902,96768.0,96767.0,2.07]
[1746573961912,0.2066902,96768.0,96767.0,2.08]
[1746573962817,0.50393582,96768.0,96767.0,2.0]
[1746573963011,0.66533582,96768.0,96767.0,2.0]
[1746573963218,0.66533582,96768.0,96767.0,0.5]
[1746573965018,0.76867583,96768.0,96767.0,0.4677511]
[1746573965225,0.76867583,96768.0,96734.0,0.3608]
[1746573965226,1.03204001,96768.0,96734.0,0.3608]
[1746573965525,0.50398922,96743.0,96732.0,0.1614]
[1746573965708,0.50398922,96743.0,96730.0,0.31275659]
[1746573965917,0.50399992,96738.0,96737.0,0.20655639]
[1746573966218,0.50399992,96738.0,96737.0,0.00800169]
[1746573966516,0.2067671,96732.0,96729.0,0.00800169]
[1746573966718,0.2067671,96732.0,96731.0,0.1291596]
[1746573967313,0.2067671,96732.0,96731.0,0.1191596]
[1746573967314,0.29704272,96732.0,96731.0,0.1191596]
[1746573967523,0.86481272,96732.0,96731.0,1.5091596]
[1746573967822,0.86481272,96732.0,96731.0,0.0091596]
[1746573968019,0.86481272,96732.0,96731.0,0.5091596]
[1746573968020,0.50401272,96732.0,96731.0,0.5091596]
[1746573968614,0.2067671,96732.0,96731.0,0.5091596]
[1746573969615,0.2067671,96732.0,96731.0,0.5391596]
[1746573971318,0.50401272,96732.0,96731.0,0.5091596]
[1746573974722,0.0516901,96736.0,96731.0,2.2425396]
[1746573974922,0.206767,96733.0,96732.0,0.1524]
[1746573975130,0.206767,96733.0,96732.0,0.4676]
[1746573975321,0.206767,96733.0,96732.0,0.570976]
[1746573975718,0.2067619,96735.0,96732.0,0.550976]
[1746573976023,0.0531768,96760.0,96747.0,0.2067345]
[1746573976229,0.2067286,96750.0,96749.0,0.3608]
[1746573976427,0.2067286,96750.0,96749.0,0.3908]
[1746573976818,0.2067286,96750.0,96749.0,1.9008]
[1746573979317,0.2067286,96750.0,96749.0,2.4008]
[1746573980817,0.0516672,96778.0,96759.0,0.2067094]
[1746573981022,1.2137694,96798.0,96759.0,0.2067094]
[1746573981023,0.11505775,96768.0,96767.0,0.2066923]
[1746573981224,0.32174795,96768.0,96767.0,1.1486923]
[1746573981424,0.1586,96785.0,96767.0,2.493673]
[1746573981725,0.2066885,96770.0,96769.0,0.2066854]
[1746573982026,0.2066885,96770.0,96769.0,0.6966854]
[1746573982424,0.2066885,96770.0,96769.0,0.241]
[1746573982627,0.2066885,96770.0,96769.0,0.361]
[1746573983033,0.2066885,96770.0,96769.0,0.5213]
[1746573983531,0.2066885,96770.0,96769.0,0.52122]
[1746573984541,0.77282187,96770.0,96769.0,0.5]
[1746573984831,0.2067286,96750.0,96749.0,0.3608]
[1746573985331,0.2067286,96750.0,96749.0,1.95164]
[1746573985633,0.41206197,96750.0,96749.0,0.45168]
[1746573985829,0.72366197,96750.0,96749.0,0.45168]
[1746573986327,0.72366197,96750.0,96749.0,0.3608]
[1746573986520,0.2067393,96745.0,96744.0,0.09088]
[1746573987028,0.41207267,96745.0,96744.0,0.09088]
[1746573987631,0.41207267,96745.0,96744.0,0.59088]
[1746573988728,0.41207267,96745.0,96744.0,0.5]
[1746573989335,0.77287267,96745.0,96744.0,0.5]
[1746573990333,0.87623667,96745.0,96744.0,0.4251472]
[1746573990725,0.41207697,96743.0,96742.0,1e-08]
[1746573991423,0.75387697,96743.0,96742.0,1e-08]
[1746573992029,1.11467697,96743.0,96742.0,0.50000001]
[1746573992225,1.21804497,96743.0,96742.0,0.41096051]
[1746573992429,1.21804497,96743.0,96742.0,0.22192001]
[1746573992737,1.21804497,96743.0,96742.0,1e-08]
[1746573993438,0.2067671,96732.0,96726.0,0.3608]
[1746573993740,0.41210047,96732.0,96726.0,0.3608]
[1746573994234,0.2067778,96727.0,96726.0,0.3608]
[1746573994436,0.2067778,96727.0,96700.0,0.1]
[1746573994437,0.0516982,96720.0,96715.0,0.09012]
[1746573994632,0.29707482,96717.0,96715.0,0.09012]
[1746573994833,0.0517003,96716.0,96709.0,0.3608]
[1746573995029,0.2068141,96710.0,96709.0,0.37897367]
[1746573995338,0.2068141,96710.0,96709.0,1.88663031]
[1746573995639,0.2068141,96710.0,96709.0,2.38663031]
[1746573996438,0.77294747,96710.0,96709.0,0.41893411]
[1746573996735,0.41216677,96701.0,96700.0,0.01744738]
[1746573996933,0.77296677,96701.0,96700.0,0.02651208]
[1746573997128,0.77296677,96701.0,96700.0,8e-08]
[1746573997525,0.77296677,96701.0,96700.0,0.51800325]
[1746573998638,0.2068334,96701.0,96700.0,0.52556874]
[1746573998832,0.2068334,96701.0,96700.0,0.72556874]
[1746573999033,0.2068334,96701.0,96700.0,0.95276874]
[1746573999232,0.41216677,96701.0,96700.0,0.88276874]
[1746573999432,0.41216677,96701.0,96700.0,0.61600874]
[1746573999929,0.75866677,96701.0,96700.0,0.61600874]
[1746574000241,0.75866677,96701.0,96700.0,0.61596874]
[1746574000630,0.75866677,96701.0,96700.0,0.52556874]
[1746574000831,0.75866677,96701.0,96700.0,0.41335924]
[1746574001043,0.75866677,96701.0,96700.0,0.43205102]
[1746574002039,1.22287877,96701.0,96697.0,0.00155111]
[1746574002242,0.2068441,96696.0,96695.0,0.00103417]
[1746574002436,0.41217747,96696.0,96695.0,0.00103417]
[1746574003741,0.41217747,96696.0,96695.0,0.50103417]
[1746574003941,0.41217747,96696.0,96695.0,0.50874396]
[1746574004442,0.2068441,96696.0,96695.0,0.50874396]
[1746574004649,0.2068441,96696.0,96695.0,0.54874396]
[1746574006037,0.2068441,96696.0,96695.0,0.50874396]
[1746574006444,0.2068441,96696.0,96695.0,0.52874396]
[1746574006644,0.2068441,96696.0,96695.0,0.50874396]
[1746574007055,0.41217747,96696.0,96695.0,0.50874396]
[1746574007542,0.77297747,96696.0,96695.0,0.50874396]
[1746574007949,0.41217747,96696.0,96695.0,0.50874396]
[1746574008848,0.75047747,96696.0,96695.0,0.50874396]
[1746574009646,1.21469347,96696.0,96695.0,0.50874396]
[1746574009944,1.21469347,96696.0,96695.0,0.45519446]
[1746574010337,0.76361785,96696.0,96695.0,0.45519446]
[1746574010543,0.85389347,96696.0,96695.0,0.00770979]
[1746574010736,0.2068676,96685.0,96684.0,0.3444]
[1746574011045,0.32192535,96685.0,96684.0,0.3444]
[1746574011243,0.29714322,96685.0,96684.0,0.3644]
[1746574011549,0.2068676,96685.0,96684.0,0.3644]
[1746574011842,0.2068676,96685.0,96684.0,1.6212698]
[1746574012039,0.2068676,96685.0,96684.0,1.7984698]
[1746574012245,0.2068676,96685.0,96684.0,1.5916]
[1746574012445,0.2068676,96685.0,96684.0,1.59933028]
[1746574012946,0.2068676,96685.0,96684.0,1.18933028]
[1746574013147,0.2068676,96685.0,96684.0,1.31933028]
[1746574013442,0.2068676,96685.0,96684.0,2.90849028]
[1746574015247,0.2068676,96685.0,96684.0,3.13849028]
[1746574015443,0.2068676,96685.0,96684.0,2.90849028]
[1746574016445,0.0517036,96710.0,96686.0,0.051716]
[1746574016646,0.2068141,96710.0,96709.0,0.3608]
[1746574016841,0.2068141,96710.0,96709.0,0.92992]
[1746574017043,0.2068141,96710.0,96709.0,0.58992]
[1746574017242,0.2068141,96710.0,96709.0,2.21992]
[1746574018445,0.2068141,96710.0,96709.0,2.71992]
[1746574019042,0.2068141,96710.0,96709.0,3.07382]
[1746574019839,0.41214747,96710.0,96709.0,2.9847]
[1746574020047,0.41214747,96710.0,96709.0,2.62536]
[1746574020553,0.75874747,96710.0,96709.0,2.62536]
[1746574022146,0.75874747,96710.0,96709.0,2.3608]
[1746574022643,0.0015,96725.0,96717.0,0.0516995]
[1746574022842,0.0015,96725.0,96718.0,0.3495]
[1746574022843,0.2067949,96719.0,96718.0,0.3495]
[1746574023052,0.29707052,96719.0,96718.0,0.64118]
[1746574023252,0.67115265,96719.0,96718.0,0.64118]
[1746574024050,0.3608,96758.0,96724.0,0.2067842]
[1746574024358,0.0015,96760.0,96752.0,0.2067244]
[1746574024553,0.0015,96760.0,96752.0,2.4594]
[1746574024759,0.2067222,96753.0,96752.0,2.2294]
[1746574025345,0.2067222,96753.0,96752.0,2.4361244]
[1746574025546,0.2067182,96755.0,96754.0,0.2067179]
[1746574025759,0.2067179,96755.0,96754.0,0.812]
[1746574026054,0.31162975,96755.0,96754.0,0.26422]
[1746574026254,0.48302975,96755.0,96754.0,0.26422]
[1746574026461,0.48302975,96755.0,96754.0,0.08852]
[1746574026856,0.84382975,96755.0,96754.0,0.00763556]
[1746574027061,0.84382975,96755.0,96754.0,0.5]
[1746574027658,1.01112975,96755.0,96754.0,0.5]
[1746574029860,1.11448575,96755.0,96754.0,0.5]
[1746574030454,1.11448575,96755.0,96754.0,0.50768288]
[1746574031059,1.01112975,96755.0,96754.0,0.50768288]
[1746574035859,0.90776785,96755.0,96732.0,0.1935]
[1746574036055,0.31167685,96733.0,96732.0,0.05]
[1746574036363,0.2067735,96729.0,96728.0,0.1691]
[1746574036759,0.31168535,96729.0,96728.0,0.18728312]
[1746574037165,0.31168535,96729.0,96728.0,0.19489337]
[1746574037870,0.31168535,96729.0,96728.0,0.69489337]
[1746574038369,0.2067735,96729.0,96728.0,0.89489337]
[1746574038579,0.20677,96731.0,96730.0,0.2067692]
[1746574038764,0.20677,96731.0,96730.0,0.7267692]
[1746574038964,0.3539,96747.0,96731.0,0.0516918]
[1746574039169,0.2067671,96732.0,96731.0,0.7684593]
[1746574039370,0.0516901,96736.0,96731.0,0.7684593]
[1746574039371,0.2067601,96737.0,96736.0,0.2067551]
[1746574039563,0.2067601,96737.0,96736.0,1.0875551]
[1746574039869,0.2067601,96737.0,96736.0,0.8808]
[1746574040070,0.2067601,96737.0,96736.0,2.5875586]
[1746574041573,0.2067601,96737.0,96736.0,2.3808]
[1746574041976,0.2067601,96737.0,96736.0,2.6708]
[1746574042864,0.22139633,96737.0,96736.0,2.6708]
[1746574043065,0.48197195,96737.0,96736.0,0.5]
[1746574043372,1.01567195,96737.0,96736.0,0.5]
[1746574045073,1.11904395,96737.0,96736.0,0.5]
[1746574046066,1.01567195,96737.0,96736.0,0.5]
[1746574048773,0.2067735,96729.0,96728.0,0.00761025]
[1746574049074,0.2067906,96721.0,96720.0,0.37881251]
[1746574049278,0.31170245,96721.0,96720.0,0.37881251]
[1746574049683,0.31170245,96721.0,96720.0,0.87881251]
[1746574049981,0.68550245,96721.0,96720.0,0.87881251]
[1746574050369,0.68550245,96721.0,96720.0,0.88668095]
[1746574050570,1.04630245,96721.0,96720.0,0.52588095]
[1746574050778,1.04630245,96721.0,96720.0,0.50786844]
[1746574051579,1.04630245,96721.0,96710.0,0.1979]
[1746574051580,0.2068184,96708.0,96704.0,0.00155097]
[1746574051766,0.67253025,96708.0,96704.0,0.00155097]
[1746574052086,0.31174525,96701.0,96700.0,0.11252517]
[1746574052283,0.41515725,96701.0,96700.0,0.11252517]
[1746574052483,0.41515725,96701.0,96700.0,0.07689257]
[1746574052779,0.41515725,96701.0,96700.0,7e-08]
[1746574052974,0.79095725,96701.0,96700.0,7e-08]
[1746574053178,0.68754525,96701.0,96700.0,7e-08]
[1746574053682,0.2068398,96698.0,96697.0,0.1979]
[1746574054074,0.31175165,96698.0,96697.0,0.1979]
[1746574054575,0.2068419,96697.0,96696.0,0.00756987]
[1746574054775,0.2068441,96696.0,96695.0,0.00103417]
[1746574054976,0.31175595,96696.0,96695.0,0.00103417]
[1746574055175,0.69995595,96696.0,96695.0,0.00103417]
[1746574055572,1.06075595,96696.0,96695.0,0.00103417]
[1746574055879,0.69995595,96696.0,96695.0,0.50103417]
[1746574056082,1.06075595,96696.0,96695.0,0.50103417]
[1746574056572,1.06075595,96696.0,96695.0,0.33364724]
[1746574056772,1.16417195,96696.0,96695.0,0.04394874]
[1746574056976,0.2068676,96685.0,96684.0,0.1838]
[1746574057179,0.31177945,96685.0,96684.0,0.1838]
[1746574057876,0.2068676,96685.0,96684.0,0.1838]
[1746574058080,0.2068676,96685.0,96684.0,0.2938]
[1746574058380,0.2068676,96685.0,96684.0,0.30150353]
[1746574058581,0.2068676,96685.0,96684.0,0.32150353]
[1746574059080,0.2068676,96685.0,96684.0,0.82150353]
[1746574059583,0.2068676,96685.0,96684.0,0.80150353]
[1746574059782,0.2068676,96685.0,96684.0,0.82150353]
[1746574061275,0.2068676,96685.0,96684.0,0.80150353]
[1746574061476,0.2068676,96685.0,96684.0,0.83150353]
[1746574061681,0.2068676,96685.0,96684.0,0.80150353]
[1746574061877,0.2068676,96685.0,96684.0,1.18230353]
[1746574062182,0.2068676,96685.0,96684.0,1.16230353]
[1746574063576,0.2068676,96685.0,96684.0,1.05230353]
[1746574063784,0.2068676,96685.0,96684.0,1.20230353]
[1746574064283,0.5827676,96685.0,96684.0,1.20230353]
[1746574064579,0.68767945,96685.0,96684.0,0.86850353]
[1746574064769,0.68767945,96685.0,96684.0,0.50770353]
[1746574064770,1.04847945,96685.0,96684.0,0.50770353]
[1746574068378,1.15190745,96685.0,96684.0,0.50770353]
[1746574069484,1.13727122,96685.0,96684.0,0.50770353]
[1746574069680,1.15190745,96685.0,96684.0,0.50770353]
[1746574071088,1.04847945,96685.0,96684.0,0.50770353]
[1746574072880,1.15190745,96685.0,96684.0,0.38159833]
[1746574073074,1.15190745,96685.0,96684.0,0.34904213]
[1746574073278,1.04847945,96685.0,96684.0,0.34904213]
[1746574073786,0.67257945,96685.0,96684.0,0.35688274]
[1746574074389,1.04177945,96685.0,96684.0,0.35688274]
[1746574079877,0.68097945,96685.0,96684.0,0.35688274]
[1746574080082,1.04177945,96685.0,96684.0,0.35688274]
[1746574080482,1.02714322,96685.0,96684.0,0.35688274]
[1746574082191,0.66634322,96685.0,96684.0,0.35688274]
[1746574082992,1.02714322,96685.0,96684.0,0.35688274]
[1746574084787,1.04177945,96685.0,96684.0,0.35688274]
[1746574084982,0.5676676,96685.0,96684.0,0.56375254]
[1746574085291,0.1811,96699.0,96684.0,0.56375254]
[1746574085292,0.2068512,96695.0,96694.0,0.2068419]
[1746574085493,0.2068526,96693.0,96692.0,0.3717]
[1746574085695,0.2068526,96693.0,96692.0,0.73682]
[1746574086689,0.07890245,96696.0,96692.0,0.94586]
[1746574086891,0.07890245,96696.0,96695.0,0.2068462]
[1746574087095,0.28574655,96696.0,96695.0,0.22]
[1746574087394,0.28574655,96696.0,96695.0,0.7724]
[1746574087590,0.28574655,96696.0,96695.0,2.2724]
[1746574088201,0.28574655,96696.0,96695.0,2.62144]
[1746574088392,0.28574655,96696.0,96695.0,2.7482862]
[1746574088696,0.28574655,96696.0,96695.0,3.0182862]
[1746574089495,0.2068441,96696.0,96695.0,3.0182862]
[1746574089696,0.2068441,96696.0,96695.0,2.60144]
[1746574089995,0.31175595,96696.0,96695.0,0.59044]
[1746574090196,0.50325595,96696.0,96695.0,0.53044]
[1746574090414,0.68685595,96696.0,96695.0,0.34904]
[1746574090821,1.04765595,96696.0,96695.0,0.34904]
[1746574092404,0.68685595,96696.0,96695.0,0.34904]
[1746574092604,1.15107195,96696.0,96695.0,0.27901904]
[1746574092905,0.2068676,96685.0,96684.0,0.00784061]
[1746574093107,0.2068698,96684.0,96683.0,0.08456]
[1746574093400,0.70238165,96684.0,96683.0,0.08456]
[1746574094790,0.70238165,96684.0,96683.0,0.58456]
[1746574096708,0.70238165,96684.0,96683.0,0.5]
[1746574097410,0.70238165,96684.0,96683.0,0.50772388]
[1746574102514,0.70238165,96684.0,96683.0,0.00772388]
[1746574102714,0.2068826,96678.0,96677.0,0.1826]
[1746574102914,0.67259445,96678.0,96677.0,0.1826]
[1746574103706,1.05009445,96678.0,96677.0,0.1826]
[1746574103911,0.2068826,96678.0,96677.0,0.83050032]
[1746574104219,0.2068826,96678.0,96677.0,1.03738502]
[1746574104516,0.2068826,96678.0,96677.0,0.84050032]
[1746574104724,0.2068826,96678.0,96677.0,1.04738502]
[1746574104926,0.2068826,96678.0,96677.0,0.84050032]
[1746574105127,0.2068826,96678.0,96677.0,2.34050032]
[1746574105420,0.2068826,96678.0,96677.0,2.33050032]
[1746574105818,0.2068826,96678.0,96677.0,2.35050032]
[1746574106719,0.2068826,96678.0,96677.0,2.33050032]
[1746574107531,0.2068826,96678.0,96677.0,2.34050032]
[1746574108528,0.2068826,96678.0,96677.0,2.33050032]
[1746574108728,0.2068826,96678.0,96677.0,2.36050032]
[1746574109223,0.2068826,96678.0,96677.0,2.22050032]
[1746574109427,0.2068826,96678.0,96677.0,2.36050032]
[1746574110127,0.2068826,96678.0,96677.0,0.86050032]
[1746574110527,0.2068826,96678.0,96677.0,0.83050032]
[1746574112930,0.2068826,96678.0,96677.0,0.69050032]
[1746574113130,0.2068826,96678.0,96677.0,0.82050032]
[1746574113931,0.2068826,96678.0,96677.0,0.69050032]
[1746574114125,0.31179445,96678.0,96677.0,0.69050032]
[1746574116439,0.31179445,96678.0,96677.0,0.90050032]
[1746574116624,0.2068826,96678.0,96677.0,1.09670032]
[1746574120328,0.2068826,96678.0,96677.0,1.03670032]
[1746574120534,0.13316554,96706.0,96677.0,1.03670032]
[1746574120836,0.2068781,96681.0,96680.0,0.2068751]
[1746574121037,0.2068781,96681.0,96680.0,0.3968751]
[1746574121232,0.07890245,96696.0,96680.0,2.494232]
[1746574121425,0.0517033,96711.0,96690.0,0.0517138]
[1746574121624,0.0517033,96711.0,96697.0,0.3608]
[1746574121839,0.206835,96701.0,96699.0,0.2068356]
[1746574122042,0.206835,96701.0,96700.0,0.393823]
[1746574122231,0.206835,96701.0,96700.0,0.623823]
[1746574122431,0.3608,96724.0,96700.0,0.963823]
[1746574122739,0.2068312,96703.0,96702.0,0.20683]
[1746574122941,0.2068312,96703.0,96702.0,0.40683]
[1746574123240,0.2068312,96703.0,96702.0,0.35683]
[1746574124138,0.2068312,96703.0,96702.0,1.85683]
[1746574124540,0.2068257,96705.0,96702.0,1.65]
[1746574124835,0.206827,96704.0,96703.0,0.1858]
[1746574125029,0.206827,96704.0,96703.0,0.61536]
[1746574125230,0.206827,96704.0,96703.0,0.5322]
[1746574125436,0.2068291,96703.0,96702.0,0.5]
[1746574125638,0.67536784,96703.0,96702.0,0.5]
[1746574125838,1.02877585,96703.0,96702.0,0.5]
[1746574126540,1.02877585,96703.0,96677.0,0.45190032]
[1746574126541,0.2068826,96678.0,96677.0,0.45190032]
[1746574126833,0.2068826,96678.0,96677.0,1.99870032]
[1746574127832,0.3923826,96678.0,96677.0,1.99870032]
[1746574128643,0.84932134,96678.0,96677.0,0.00790032]
[1746574128835,0.2068933,96673.0,96672.0,0.00155163]
[1746574129035,0.30303204,96673.0,96672.0,0.00155163]
[1746574129337,0.30303204,96673.0,96672.0,0.50155163]
[1746574129540,0.30303204,96673.0,96672.0,0.5091914]
[1746574129734,0.48853204,96673.0,96672.0,0.52446779]
[1746574129940,0.48853204,96673.0,96672.0,0.54446779]
[1746574131247,0.48853204,96673.0,96672.0,0.52446779]
[1746574132042,0.48853204,96673.0,96672.0,0.52431335]
[1746574132244,0.48853204,96673.0,96672.0,0.52431425]
[1746574132839,0.48853204,96673.0,96672.0,0.5091914]
[1746574133744,0.84933204,96673.0,96672.0,0.5091914]
[1746574134242,1.04513204,96673.0,96672.0,0.5091914]
[1746574134748,1.04513204,96673.0,96672.0,0.52424857]
[1746574135645,1.04513204,96673.0,96672.0,0.52425282]
[1746574135838,1.04513204,96673.0,96672.0,0.5091914]
[1746574136744,1.04513204,96673.0,96672.0,0.52425394]
[1746574137546,1.04513204,96673.0,96672.0,0.52425031]
[1746574137748,1.04513204,96673.0,96672.0,0.5091914]
[1746574146246,1.04513204,96673.0,96672.0,0.3054717]
[1746574146550,1.14857605,96673.0,96672.0,0.0227405]
[1746574146857,1.14857605,96673.0,96665.0,0.0010345]
[1746574146858,0.2069083,96666.0,96665.0,0.0010345]
[1746574147056,0.30304704,96666.0,96665.0,0.0010345]
[1746574147546,0.30304704,96666.0,96665.0,9e-08]
[1746574147758,0.2069361,96653.0,96635.0,0.00103482]
[1746574147945,0.74703484,96653.0,96652.0,1e-07]
[1746574148147,0.2069639,96640.0,96639.0,0.1983]
[1746574148347,0.65803952,96640.0,96639.0,0.1983]
[1746574148852,0.65803952,96640.0,96639.0,0.5150315]
[1746574149059,1.03730264,96640.0,96639.0,0.2171222]
[1746574149353,1.03730264,96640.0,96639.0,0.07887067]
[1746574149547,1.12046264,96640.0,96639.0,0.07886711]
[1746574149748,0.2069661,96639.0,96638.0,0.3749]
[1746574149950,0.30310484,96639.0,96638.0,0.3291404]
[1746574150148,0.67650484,96639.0,96638.0,0.3291404]
[1746574151156,0.67650484,96639.0,96638.0,0.1202051]
[1746574151457,0.2069682,96638.0,96637.0,0.00155219]
[1746574151647,0.30310694,96638.0,96637.0,0.00155219]
[1746574151959,0.68960694,96638.0,96637.0,0.00155219]
[1746574152963,0.69060694,96638.0,96637.0,0.00155219]
[1746574153258,0.69060694,96638.0,96637.0,0.50155219]
[1746574154658,0.69060694,96638.0,96637.0,0.68705219]
[1746574155860,0.2079682,96638.0,96637.0,0.68705219]
[1746574156061,0.2079682,96638.0,96637.0,1.04185737]
[1746574156360,0.2069601,96643.0,96642.0,0.2586935]
[1746574156570,0.1034776,96645.0,96642.0,2.1208]
[1746574156860,0.2069554,96644.0,96643.0,0.5808575]
[1746574157063,0.2069554,96644.0,96643.0,0.8308575]
[1746574157258,0.2069554,96644.0,96643.0,1.0088575]
[1746574157861,0.2586734,96655.0,96654.0,0.2069276]
[1746574158057,0.00155282,96660.0,96655.0,0.2069313]
[1746574158058,0.2069318,96656.0,96655.0,0.2069313]
[1746574158255,0.2069318,96656.0,96655.0,0.5978]
[1746574158455,0.2069318,96656.0,96655.0,0.62096]
[1746574158758,0.2069318,96656.0,96655.0,2.12096]
[1746574159759,0.2069318,96656.0,96655.0,1.97096]
[1746574159954,0.2069318,96656.0,96655.0,2.3878]
[1746574160464,0.4055318,96656.0,96655.0,2.3878]
[1746574161653,0.4055318,96656.0,96655.0,0.8878]
[1746574162862,0.2069318,96656.0,96655.0,1.0478]
[1746574163455,0.2069318,96656.0,96655.0,0.9078]
[1746574163660,0.2069318,96656.0,96655.0,1.2347318]
[1746574163856,0.2069318,96656.0,96655.0,1.2147318]
[1746574166564,0.2069318,96656.0,96655.0,0.9078]
[1746574166965,0.2069318,96656.0,96655.0,1.1147318]
[1746574167763,0.2069318,96656.0,96655.0,0.8878]
[1746574167973,0.3959318,96656.0,96655.0,0.8878]
[1746574169166,0.2069291,96659.0,96658.0,0.2069233]